fUSD/lending_fUSD_20260420
["ID","MTS","AMOUNT","RATE_DAILY","PERIOD"]
[420857092,1776646246589,-151.0,0.00011993,2]
[420857093,1776646246598,-1343854.7788552,0.00012,2]
[420857094,1776646246662,-500.0,0.00012,2]
[420857095,1776646246676,-500.0,0.00012,2]
[420857097,1776646247075,-552.71,0.00011026,2]
[420857098,1776646247084,-1709.47561471,0.00011111,2]
[420857101,1776646247337,-2069.52438529,0.00011111,2]
[420857102,1776646247347,-8192.276927,0.000119,2]
[420857103,1776646247357,-2770.73136057,0.00012,2]
[420857104,1776646247368,-6800.27379133,0.00012,2]
[420857105,1776646247384,-7352.38836154,0.00012,2]
[420857106,1776646248083,-500.0,0.00012,2]
[420857107,1776646248094,-7345.04999991,0.00012,2]
[420857108,1776646248106,-5484.80896462,0.00012,2]
[420857109,1776646248117,-32031.52631547,0.00012,2]
[420857110,1776646248129,-7144.42255992,0.00012,2]
[420857111,1776646255266,9610.227,8.958e-05,2]
[420857112,1776646255293,10000.01,8.958e-05,2]
[420857113,1776646255323,10000.01,8.958e-05,2]
[420857114,1776646255352,10000.01,8.958e-05,2]
[420857115,1776646255379,10000.01,8.958e-05,2]
[420857116,1776646255405,10000.01,8.958e-05,2]
[420857117,1776646255432,10000.01,8.958e-05,2]
[420857118,1776646255458,10000.01,8.958e-05,2]
[420857119,1776646255484,10000.01,8.958e-05,2]
[420857121,1776646262045,150.0,8.957e-05,2]
[420857122,1776646267632,431.0,8.957e-05,3]
[420857124,1776646294242,2293.786,8.778e-05,2]
[420857125,1776646294278,170.223,8.778e-05,2]
[420857126,1776646327777,417.0,8.778e-05,3]
[420857127,1776646381210,300.0,8.957e-05,2]
[420857130,1776646441944,1238.001,8.958e-05,2]
[420857131,1776646441967,4651.999,8.958e-05,2]
[420857132,1776646445302,348.011,8.957e-05,3]
[420857133,1776646445340,47.989,8.957e-05,3]
[420857134,1776646445761,500.0,8.957e-05,2]
[420857135,1776646445816,500.0,8.957e-05,2]
[420857136,1776646445868,270.11528034,8.957e-05,2]
[420857137,1776646447215,166.25726564,8.957e-05,2]
[420857138,1776646457779,-4788.23422021,8.958e-05,2]
[420857139,1776646459101,191.24691453,8.957e-05,2]
[420857140,1776646462366,-10000.01,8.958e-05,2]
[420857141,1776646462469,-10000.01,8.958e-05,2]
[420857142,1776646462669,-10000.01,8.958e-05,2]
[420857143,1776646463448,-10000.01,8.958e-05,2]
[420857144,1776646463700,-10000.01,8.958e-05,2]
[420857145,1776646463729,-10000.01,8.958e-05,2]
[420857146,1776646463763,-10000.01,8.958e-05,2]
[420857147,1776646463786,-10000.01,8.958e-05,2]
[420857148,1776646463807,-10000.01,8.958e-05,2]
[420857149,1776646464301,235.25595035,8.957e-05,2]
[420857150,1776646501384,300.0,8.957e-05,2]
[420857151,1776646501416,1200.0,8.957e-05,2]
[420857152,1776646501446,300.0,8.957e-05,2]
[420857153,1776646506538,242.0,8.957e-05,3]
[420857154,1776646510946,160.0,8.957e-05,3]
[420857155,1776646511739,154.0,8.957e-05,3]
[420857156,1776646516137,270.61,8.658e-05,2]
[420857157,1776646557932,462.53558914,8.957e-05,2]
[420857158,1776646557960,37.46441086,8.957e-05,2]
[420857159,1776646557989,486.37623432,8.957e-05,2]
[420857160,1776646558026,500.0,8.957e-05,2]
[420857161,1776646558059,500.0,8.957e-05,2]
[420857162,1776646558092,500.0,8.957e-05,2]
[420857163,1776646558130,500.0,8.957e-05,2]
[420857164,1776646558163,500.0,8.957e-05,2]
[420857165,1776646558212,500.0,8.957e-05,2]
[420857166,1776646558247,500.0,8.957e-05,2]
[420857167,1776646558284,500.0,8.957e-05,2]
[420857168,1776646558317,476.16935482,8.957e-05,2]
[420857169,1776646558343,23.83064518,8.957e-05,2]
[420857170,1776646558376,500.0,8.957e-05,2]
[420857171,1776646558409,500.0,8.957e-05,2]
[420857172,1776646558446,500.0,8.957e-05,2]
[420857173,1776646558480,500.0,8.957e-05,2]
[420857174,1776646558532,500.0,8.957e-05,2]
[420857175,1776646558566,500.0,8.957e-05,2]
[420857176,1776646558599,500.0,8.957e-05,2]
[420857177,1776646558631,500.0,8.957e-05,2]
[420857178,1776646558668,500.0,8.957e-05,2]
[420857179,1776646558700,476.17935482,8.957e-05,2]
[420857180,1776646558726,23.82064518,8.957e-05,2]
[420857181,1776646558762,500.0,8.957e-05,2]
[420857182,1776646558816,500.0,8.957e-05,2]
[420857183,1776646558848,500.0,8.957e-05,2]
[420857184,1776646558884,500.0,8.957e-05,2]
[420857185,1776646558917,500.0,8.957e-05,2]
[420857186,1776646558954,500.0,8.957e-05,2]
[420857187,1776646558990,500.0,8.957e-05,2]
[420857188,1776646559022,500.0,8.957e-05,2]
[420857189,1776646559057,500.0,8.957e-05,2]
[420857190,1776646559102,476.18935482,8.957e-05,2]
[420857191,1776646559128,23.81064518,8.957e-05,2]
[420857192,1776646559160,500.0,8.957e-05,2]
[420857193,1776646559193,500.0,8.957e-05,2]
[420857194,1776646559225,500.0,8.957e-05,2]
[420857195,1776646559262,500.0,8.957e-05,2]
[420857196,1776646559294,500.0,8.957e-05,2]
[420857197,1776646559327,500.0,8.957e-05,2]
[420857198,1776646559359,500.0,8.957e-05,2]
[420857199,1776646559407,500.0,8.957e-05,2]
[420857200,1776646559453,500.0,8.957e-05,2]
[420857201,1776646559485,476.19935482,8.957e-05,2]
[420857202,1776646559511,23.80064518,8.957e-05,2]
[420857203,1776646559544,500.0,8.957e-05,2]
[420857204,1776646559581,500.0,8.957e-05,2]
[420857205,1776646559614,500.0,8.957e-05,2]
[420857206,1776646559647,500.0,8.957e-05,2]
[420857207,1776646559683,500.0,8.957e-05,2]
[420857208,1776646560209,500.0,8.957e-05,2]
[420857209,1776646560248,500.0,8.957e-05,2]
[420857210,1776646560285,500.0,8.957e-05,2]
[420857211,1776646560325,500.0,8.957e-05,2]
[420857212,1776646560363,476.20935482,8.957e-05,2]
[420857213,1776646560390,23.79064518,8.957e-05,2]
[420857214,1776646560428,500.0,8.957e-05,2]
[420857215,1776646560464,500.0,8.957e-05,2]
[420857216,1776646560502,500.0,8.957e-05,2]
[420857217,1776646560541,500.0,8.957e-05,2]
[420857218,1776646560591,500.0,8.957e-05,2]
[420857219,1776646560629,500.0,8.957e-05,2]
[420857220,1776646560669,500.0,8.957e-05,2]
[420857221,1776646560721,500.0,8.957e-05,2]
[420857222,1776646560844,500.0,8.957e-05,2]
[420857223,1776646562548,300.0,8.957e-05,2]
[420857224,1776646571762,176.21935482,8.957e-05,3]
[420857225,1776646571786,429.78064518,8.957e-05,3]
[420857226,1776646580520,154.0,8.957e-05,3]
[420857227,1776646589273,587.00551655,8.957e-05,2]
[420857228,1776646589562,587.00551655,8.957e-05,2]
[420857229,1776646589896,587.00551655,8.957e-05,2]
[420857230,1776646590286,587.00551655,8.957e-05,2]
[420857231,1776646590578,587.00551655,8.957e-05,2]
[420857232,1776646591316,587.00551655,8.957e-05,2]
[420857233,1776646591733,587.00551655,8.957e-05,2]
[420857234,1776646592132,307.19073897,8.957e-05,2]
[420857235,1776646592159,279.81477758,8.957e-05,2]
[420857236,1776646592405,500.0,8.957e-05,2]
[420857237,1776646592474,500.0,8.957e-05,2]
[420857238,1776646592515,587.00551655,8.957e-05,2]
[420857239,1776646592683,500.0,8.957e-05,2]
[420857240,1776646592737,500.0,8.957e-05,2]
[420857241,1776646592897,164.65974704,8.957e-05,2]
[420857242,1776646596606,587.00551655,8.957e-05,2]
[420857243,1776646596727,587.00551655,8.957e-05,2]
[420857244,1776646596764,587.00551655,8.957e-05,2]
[420857245,1776646596796,207.51340918,8.957e-05,2]
[420857246,1776646596823,379.49210737,8.957e-05,2]
[420857247,1776646596856,587.00551655,8.957e-05,2]
[420857248,1776646596890,587.00551655,8.957e-05,2]
[420857249,1776646596923,587.00551655,8.957e-05,2]
[420857250,1776646596959,587.00551655,8.957e-05,2]
[420857251,1776646596992,587.00551655,8.957e-05,2]
[420857252,1776646597027,587.00551655,8.957e-05,2]
[420857253,1776646597062,587.00551655,8.957e-05,2]
[420857254,1776646597108,511.47927678,8.957e-05,2]
[420857255,1776646597135,75.52623977,8.957e-05,2]
[420857256,1776646597170,587.00551655,8.957e-05,2]
[420857257,1776646597209,587.00551655,8.957e-05,2]
[420857258,1776646597242,587.00551655,8.957e-05,2]
[420857259,1776646597276,587.00551655,8.957e-05,2]
[420857260,1776646597315,587.00551655,8.957e-05,2]
[420857261,1776646597349,587.00551655,8.957e-05,2]
[420857262,1776646597383,587.00551655,8.957e-05,2]
[420857263,1776646597417,587.00551655,8.957e-05,2]
[420857264,1776646597455,587.00551655,8.957e-05,2]
[420857265,1776646597489,587.00551655,8.957e-05,2]
[420857266,1776646597525,587.00551655,8.957e-05,2]
[420857267,1776646597560,587.00551655,8.957e-05,2]
[420857268,1776646597594,587.00551655,8.957e-05,2]
[420857269,1776646597628,587.00551655,8.957e-05,2]
[420857270,1776646597686,587.00551655,8.957e-05,2]
[420857271,1776646597723,587.00551655,8.957e-05,2]
[420857272,1776646597766,532.39549543,8.957e-05,2]
[420857273,1776646597795,54.61002112,8.957e-05,2]
[420857274,1776646597833,587.00551655,8.957e-05,2]
[420857275,1776646597873,587.00551655,8.957e-05,2]
[420857276,1776646597912,587.00551655,8.957e-05,2]
[420857277,1776646597953,587.00551655,8.957e-05,2]
[420857278,1776646612863,297.4468408,8.957e-05,2]
[420857279,1776646622355,374.91880667,8.957e-05,2]
[420857280,1776646622646,150.0,8.957e-05,2]
[420857281,1776646624110,500.0,8.957e-05,2]
[420857282,1776646624155,500.0,8.957e-05,2]
[420857283,1776646624191,500.0,8.957e-05,2]
[420857284,1776646624230,500.0,8.957e-05,2]
[420857285,1776646624315,500.0,8.957e-05,2]
[420857286,1776646624366,500.0,8.957e-05,2]
[420857287,1776646624400,500.0,8.957e-05,2]
[420857288,1776646624451,500.0,8.957e-05,2]
[420857289,1776646624545,500.0,8.957e-05,2]
[420857290,1776646624580,500.0,8.957e-05,2]
[420857291,1776646624620,500.0,8.957e-05,2]
[420857292,1776646624654,500.0,8.957e-05,2]
[420857293,1776646624688,500.0,8.957e-05,2]
[420857294,1776646624727,275.01226521,8.957e-05,2]
[420857295,1776646624754,224.98773479,8.957e-05,2]
[420857296,1776646624788,475.50351726,8.957e-05,2]
[420857297,1776646624837,500.0,8.957e-05,2]
[420857298,1776646624927,500.0,8.957e-05,2]
[420857299,1776646625097,500.0,8.957e-05,2]
[420857300,1776646625160,500.0,8.957e-05,2]
[420857301,1776646625237,500.0,8.957e-05,2]
[420857302,1776646625299,500.0,8.957e-05,2]
[420857303,1776646627154,576.0,8.957e-05,3]
[420857304,1776646636778,500.0,8.957e-05,2]
[420857305,1776646663459,169.96,8.273e-05,2]
[420857306,1776646685790,-21630.0,8.958e-05,2]
[420857307,1776646686832,547.0,8.273e-05,3]
[420857309,1776646705866,300.0,8.957e-05,2]
[420857310,1776646713066,368.09771008,8.957e-05,2]
[420857313,1776646751736,519.0,8.957e-05,3]
[420857314,1776646751999,250.0,8.957e-05,2]
[420857321,1776646803315,1200.0,8.957e-05,2]
[420857322,1776646806797,500.0,8.957e-05,2]
[420857323,1776646806872,500.0,8.957e-05,2]
[420857324,1776646806975,287.32121734,8.957e-05,2]
[420857325,1776646810727,493.0,8.957e-05,3]
[420857326,1776646811099,89.13982053,8.957e-05,3]
[420857327,1776646811134,70.86017947,8.957e-05,3]
[420857328,1776646820478,500.0,8.957e-05,2]
[420857329,1776646820518,500.0,8.957e-05,2]
[420857330,1776646820563,500.0,8.957e-05,2]
[420857331,1776646820601,500.0,8.957e-05,2]
[420857332,1776646820638,500.0,8.957e-05,2]
[420857333,1776646820675,500.0,8.957e-05,2]
[420857334,1776646820710,500.0,8.957e-05,2]
[420857335,1776646820744,500.0,8.957e-05,2]
[420857336,1776646820778,500.0,8.957e-05,2]
[420857337,1776646820820,500.0,8.957e-05,2]
[420857338,1776646820868,500.0,8.957e-05,2]
[420857339,1776646820903,500.0,8.957e-05,2]
[420857340,1776646820939,500.0,8.957e-05,2]
[420857341,1776646820977,500.0,8.957e-05,2]
[420857342,1776646821013,500.0,8.957e-05,2]
[420857343,1776646821047,500.0,8.957e-05,2]
[420857344,1776646821082,500.0,8.957e-05,2]
[420857345,1776646821123,500.0,8.957e-05,2]
[420857346,1776646821168,500.0,8.957e-05,2]
[420857347,1776646821204,429.14982053,8.957e-05,2]
[420857348,1776646821232,190.29364186,8.957e-05,2]
[420857349,1776646821770,500.0,8.957e-05,2]
[420857350,1776646821806,500.0,8.957e-05,2]
[420857351,1776646821855,500.0,8.957e-05,2]
[420857352,1776646821892,500.0,8.957e-05,2]
[420857353,1776646821941,500.0,8.957e-05,2]
[420857354,1776646821983,500.0,8.957e-05,2]
[420857355,1776646822043,500.0,8.957e-05,2]
[420857356,1776646822082,500.0,8.957e-05,2]
[420857357,1776646822132,500.0,8.957e-05,2]
[420857358,1776646822185,500.0,8.957e-05,2]
[420857359,1776646822235,500.0,8.957e-05,2]
[420857360,1776646822285,500.0,8.957e-05,2]
[420857361,1776646822336,500.0,8.957e-05,2]
[420857362,1776646822381,500.0,8.957e-05,2]
[420857363,1776646822428,500.0,8.957e-05,2]
[420857364,1776646822466,500.0,8.957e-05,2]
[420857365,1776646834781,500.0,8.957e-05,2]
[420857366,1776646834816,500.0,8.957e-05,2]
[420857367,1776646834851,500.0,8.957e-05,2]
[420857368,1776646834892,309.71635814,8.957e-05,2]
[420857369,1776646834920,190.28364186,8.957e-05,2]
[420857370,1776646834966,500.0,8.957e-05,2]
[420857371,1776646835015,500.0,8.957e-05,2]
[420857372,1776646835050,500.0,8.957e-05,2]
[420857373,1776646835093,500.0,8.957e-05,2]
[420857374,1776646835132,500.0,8.957e-05,2]
[420857375,1776646835166,500.0,8.957e-05,2]
[420857376,1776646835201,500.0,8.957e-05,2]
[420857377,1776646835240,500.0,8.957e-05,2]
[420857378,1776646835277,500.0,8.957e-05,2]
[420857379,1776646835328,500.0,8.957e-05,2]
[420857380,1776646835368,500.0,8.957e-05,2]
[420857381,1776646835416,500.0,8.957e-05,2]
[420857382,1776646835455,500.0,8.957e-05,2]
[420857383,1776646835503,500.0,8.957e-05,2]
[420857384,1776646835543,500.0,8.957e-05,2]
[420857385,1776646835595,500.0,8.957e-05,2]
[420857386,1776646835633,500.0,8.957e-05,2]
[420857387,1776646835668,619.44346239,8.957e-05,2]
[420857388,1776646835704,500.0,8.957e-05,2]
[420857389,1776646835751,190.28289575,8.957e-05,2]
[420857390,1776646835780,309.71710425,8.957e-05,2]
[420857391,1776646835829,500.0,8.957e-05,2]
[420857392,1776646835871,500.0,8.957e-05,2]
[420857393,1776646835913,500.0,8.957e-05,2]
[420857394,1776646835950,500.0,8.957e-05,2]
[420857395,1776646849966,164.67916525,8.957e-05,2]
[420857396,1776646854039,500.0,8.957e-05,2]
[420857397,1776646854090,485.94087026,8.957e-05,2]
[420857398,1776646854127,500.0,8.957e-05,2]
[420857399,1776646854170,500.0,8.957e-05,2]
[420857400,1776646854206,500.0,8.957e-05,2]
[420857401,1776646854268,500.0,8.957e-05,2]
[420857402,1776646854306,500.0,8.957e-05,2]
[420857403,1776646854344,500.0,8.957e-05,2]
[420857404,1776646854419,500.0,8.957e-05,2]
[420857405,1776646861511,300.0,8.957e-05,2]
[420857406,1776646873564,1923.0,8.958e-05,2]
[420857407,1776646891367,500.0,8.957e-05,2]
[420857408,1776646891716,316.67286024,8.957e-05,2]
[420857409,1776646891744,183.32713976,8.957e-05,2]
[420857410,1776646892104,500.0,8.957e-05,2]
[420857411,1776646892402,500.0,8.957e-05,2]
[420857412,1776646892828,500.0,8.957e-05,2]
[420857413,1776646893388,2359.43,8.778e-05,2]
[420857414,1776646893423,175.88,8.778e-05,2]
[420857415,1776646899380,500.0,8.957e-05,2]
[420857416,1776646903708,500.0,8.957e-05,2]
[420857417,1776646924616,300.0,8.957e-05,2]
[420857418,1776646927579,574.0,8.957e-05,3]
[420857419,1776646938042,3907.37286024,8.858e-05,2]
[420857420,1776646938065,2874.54793976,8.858e-05,2]
[420857421,1776646982093,150.0,8.957e-05,2]
[420857422,1776646985735,545.0,8.858e-05,3]
[420857423,1776646985940,500.0,8.957e-05,2]
[420857424,1776646985992,401.12485214,8.957e-05,2]
[420857425,1776646998943,500.0,8.957e-05,2]
[420857426,1776646998986,500.0,8.957e-05,2]
[420857427,1776646999047,500.0,8.957e-05,2]
[420857428,1776646999146,500.0,8.957e-05,2]
[420857429,1776646999181,500.0,8.957e-05,2]
[420857430,1776646999225,500.0,8.957e-05,2]
[420857431,1776646999262,500.0,8.957e-05,2]
[420857432,1776646999302,500.0,8.957e-05,2]
[420857433,1776646999337,500.0,8.957e-05,2]
[420857434,1776646999377,500.0,8.957e-05,2]
[420857435,1776646999413,500.0,8.957e-05,2]
[420857436,1776646999472,29.3372081,8.957e-05,2]
[420857437,1776646999502,470.6627919,8.957e-05,2]
[420857438,1776646999538,500.0,8.957e-05,2]
[420857439,1776646999635,500.0,8.957e-05,2]
[420857440,1776646999702,500.0,8.957e-05,2]
[420857441,1776646999737,500.0,8.957e-05,2]
[420857442,1776646999771,500.0,8.957e-05,2]
[420857443,1776646999810,500.0,8.957e-05,2]
[420857444,1776646999849,500.0,8.957e-05,2]
[420857445,1776647004962,500.0,8.957e-05,2]
[420857446,1776647005038,500.0,8.957e-05,2]
[420857447,1776647005071,29.3472081,8.957e-05,2]
[420857448,1776647005098,470.6527919,8.957e-05,2]
[420857449,1776647005132,500.0,8.957e-05,2]
[420857450,1776647005177,500.0,8.957e-05,2]
[420857451,1776647005210,500.0,8.957e-05,2]
[420857452,1776647005245,500.0,8.957e-05,2]
[420857453,1776647005279,500.0,8.957e-05,2]
[420857454,1776647005322,500.0,8.957e-05,2]
[420857455,1776647005449,500.0,8.957e-05,2]
[420857456,1776647005488,500.0,8.957e-05,2]
[420857457,1776647005538,500.0,8.957e-05,2]
[420857458,1776647005585,29.3572081,8.957e-05,2]
[420857459,1776647005612,470.6427919,8.957e-05,2]
[420857460,1776647012929,500.0,8.957e-05,2]
[420857461,1776647019182,591.8417,8.858e-05,2]
[420857462,1776647019774,500.0,8.957e-05,2]
[420857463,1776647019811,500.0,8.957e-05,2]
[420857464,1776647019849,500.0,8.957e-05,2]
[420857465,1776647019887,500.0,8.957e-05,2]
[420857466,1776647019928,500.0,8.957e-05,2]
[420857467,1776647019968,500.0,8.957e-05,2]
[420857468,1776647020003,437.5255081,8.957e-05,2]
[420857469,1776647020030,62.4744919,8.957e-05,2]
[420857470,1776647020068,500.0,8.957e-05,2]
[420857471,1776647020114,500.0,8.957e-05,2]
[420857472,1776647020154,500.0,8.957e-05,2]
[420857473,1776647020201,500.0,8.957e-05,2]
[420857474,1776647020235,500.0,8.957e-05,2]
[420857475,1776647020274,500.0,8.957e-05,2]
[420857476,1776647020312,500.0,8.957e-05,2]
[420857477,1776647020351,500.0,8.957e-05,2]
[420857478,1776647020385,500.0,8.957e-05,2]
[420857479,1776647020420,437.5355081,8.957e-05,2]
[420857480,1776647020447,62.4644919,8.957e-05,2]
[420857481,1776647020485,500.0,8.957e-05,2]
[420857482,1776647020523,500.0,8.957e-05,2]
[420857483,1776647020558,500.0,8.957e-05,2]
[420857484,1776647020596,500.0,8.957e-05,2]
[420857485,1776647020928,500.0,8.957e-05,2]
[420857486,1776647021003,500.0,8.957e-05,2]
[420857487,1776647021042,500.0,8.957e-05,2]
[420857488,1776647021080,500.0,8.957e-05,2]
[420857489,1776647021117,500.0,8.957e-05,2]
[420857490,1776647021155,437.5455081,8.957e-05,2]
[420857491,1776647021182,62.4544919,8.957e-05,2]
[420857492,1776647021220,500.0,8.957e-05,2]
[420857493,1776647021282,500.0,8.957e-05,2]
[420857494,1776647021399,500.0,8.957e-05,2]
[420857495,1776647021433,500.0,8.957e-05,2]
[420857496,1776647021468,500.0,8.957e-05,2]
[420857497,1776647021528,500.0,8.957e-05,2]
[420857498,1776647021623,500.0,8.957e-05,2]
[420857499,1776647033677,196.76284622,8.957e-05,2]
[420857500,1776647040268,500.0,8.957e-05,2]
[420857501,1776647040348,500.0,8.957e-05,2]
[420857502,1776647040394,240.79266188,8.957e-05,2]
[420857503,1776647040417,326.57737275,8.957e-05,2]
[420857504,1776647041194,227.0,8.957e-05,2]
[420857505,1776647045551,4446.43262725,8.957e-05,2]
[420857506,1776647045574,565.55414493,8.957e-05,2]
[420857507,1776647050969,300.0,8.957e-05,3]
[420857508,1776647061050,175.15020386,8.957e-05,2]
[420857509,1776647084501,257.66839706,8.957e-05,2]
[420857510,1776647101385,1200.0,8.957e-05,2]
[420857511,1776647105466,161.0,8.957e-05,3]
[420857512,1776647111784,503.0,8.957e-05,3]
[420857513,1776647140745,150.0,8.038e-05,2]
[420857514,1776647140791,150.0,8.166e-05,2]
[420857515,1776647140867,150.0,8.294e-05,2]
[420857516,1776647140941,150.0,8.421e-05,2]
[420857517,1776647141006,150.0,8.549e-05,2]
[420857518,1776647141072,150.0,8.676e-05,2]
[420857519,1776647141151,150.0,8.804e-05,2]
[420857520,1776647141215,150.0,8.932e-05,2]
[420857521,1776647141322,150.0,8.038e-05,2]
[420857522,1776647141360,150.0,8.485e-05,2]
[420857523,1776647141437,150.0,8.932e-05,2]
[420857524,1776647148538,150.0,8.038e-05,2]
[420857525,1776647148569,37.63725415,8.485e-05,2]
[420857526,1776647148593,112.36274585,8.485e-05,2]
[420857527,1776647148627,150.0,8.932e-05,2]
[420857528,1776647152679,150.0,8.038e-05,2]
[420857529,1776647152716,150.0,8.485e-05,2]
[420857530,1776647152781,150.0,8.932e-05,2]
[420857531,1776647155064,152.0,8.87e-05,7]
[420857532,1776647161402,150.0,8.038e-05,2]
[420857533,1776647161433,150.0,8.485e-05,2]
[420857534,1776647161468,150.0,8.932e-05,2]
[420857535,1776647167648,478.0,8.957e-05,3]
[420857539,1776647211468,161.0,8.957e-05,3]
[420857540,1776647277017,3046.64725415,8.858e-05,2]
[420857541,1776647277043,5000.01,8.858e-05,2]
[420857542,1776647277069,10000.01,8.858e-05,2]
[420857543,1776647277095,10000.01,8.858e-05,2]
[420857544,1776647277122,10000.01,8.858e-05,2]
[420857545,1776647277148,10000.01,8.858e-05,2]
[420857546,1776647277173,10000.01,8.858e-05,2]
[420857547,1776647277199,10000.01,8.858e-05,2]
[420857548,1776647277224,10000.01,8.858e-05,2]
[420857549,1776647277255,10000.01,8.858e-05,2]
[420857550,1776647277281,10000.01,8.858e-05,2]
[420857551,1776647277307,5000.01,8.858e-05,2]
[420857552,1776647277333,5000.01,8.858e-05,2]
[420857553,1776647277359,5000.01,8.858e-05,2]
[420857554,1776647277385,5000.01,8.858e-05,2]
[420857555,1776647277412,5000.01,8.858e-05,2]
[420857556,1776647277438,5000.01,8.858e-05,2]
[420857557,1776647277464,5000.01,8.858e-05,2]
[420857558,1776647277491,5000.01,8.858e-05,2]
[420857559,1776647300937,-62.7753519,8.858e-05,2]
[420857560,1776647300979,-5000.01,8.858e-05,2]
[420857561,1776647301012,-5000.01,8.858e-05,2]
[420857562,1776647301114,-5000.01,8.858e-05,2]
[420857563,1776647301223,-5000.01,8.858e-05,2]
[420857564,1776647303203,-5000.01,8.858e-05,2]
[420857565,1776647303313,-5000.01,8.858e-05,2]
[420857566,1776647303425,-5000.01,8.858e-05,2]
[420857567,1776647303540,-5000.01,8.858e-05,2]
[420857568,1776647304127,-5000.01,8.858e-05,2]
[420857569,1776647304229,-5000.01,8.858e-05,2]
[420857570,1776647313001,214.7,8.609e-05,2]
[420857571,1776647320492,166.98,8.507e-05,2]
[420857572,1776647333115,2057.238744,8.813e-05,2]
[420857573,1776647338638,-297.06,8.581e-05,2]
[420857574,1776647338649,-7264.031256,8.858e-05,2]
[420857575,1776647339541,-10000.01,8.858e-05,2]
[420857576,1776647339670,-10000.01,8.858e-05,2]
[420857577,1776647339870,-10000.01,8.858e-05,2]
[420857578,1776647339966,-10000.01,8.858e-05,2]
[420857579,1776647340105,-10000.01,8.858e-05,2]
[420857580,1776647340220,-10000.01,8.858e-05,2]
[420857581,1776647340323,-10000.01,8.858e-05,2]
[420857582,1776647340436,-1868.15816205,8.858e-05,2]
[420857583,1776647340461,-6263.6936759,8.858e-05,2]
[420857584,1776647340531,-500.0,8.858e-05,2]
[420857585,1776647340561,-454.0,8.858e-05,3]
[420857586,1776647340592,-151.0,8.955e-05,2]
[420857587,1776647340621,-151.0,8.955e-05,2]
[420857588,1776647340651,-500.0,8.957e-05,2]
[420857589,1776647340682,-183.77552504,8.957e-05,2]
[420857590,1776647340713,-500.0,8.957e-05,2]
[420857591,1776647340742,-500.0,8.957e-05,2]
[420857592,1776647340773,-455.99314068,8.957e-05,2]
[420857593,1776647340802,-369.38707669,8.957e-05,2]
[420857594,1776647340831,-624.59047478,8.957e-05,2]
[420857595,1776647341318,300.0,8.857e-05,2]
[420857596,1776647341431,300.0,8.956e-05,2]
[420857597,1776647342369,150.0,8.957e-05,2]
[420857598,1776647346730,152.0,8.955e-05,3]
[420857599,1776647371890,318.51756562,8.858e-05,2]
[420857600,1776647371916,10000.01,8.858e-05,2]
[420857601,1776647373047,-8779.49243438,8.858e-05,2]
[420857602,1776647373067,-10000.01,8.858e-05,2]
[420857603,1776647373082,-10000.01,8.858e-05,2]
[420857604,1776647373096,-10000.01,8.858e-05,2]
[420857605,1776647373159,-10000.01,8.858e-05,2]
[420857606,1776647373178,-10000.01,8.858e-05,2]
[420857607,1776647373206,-10000.01,8.858e-05,2]
[420857609,1776647375806,-3010.6202,8.858e-05,2]
[420857612,1776647391051,200.0,8.07e-05,2]
[420857613,1776647398802,200.0,8.27e-05,2]